Cogmind - Beta 16 @@@ ROGUE MODE // 2025.12.28 @ 15:19:18 Player: tanukistars115 Result: Destroyed by G-50 Soldier with Heavy Laser Performance ------------- Evolutions (2) 1000 Regions Visited (4) 800 Robots Destroyed (21) 105 Value Destroyed (498) 498 Prototype IDs (0) 0 Alien Tech Used (0) 0 Bonus (0) 0 TOTAL SCORE: 2403 Bonus ------- None Cogmind --------- Core Integrity 0/550 Matter 300/300 Energy 100/100 System Corruption 0% Temperature Cool (18) Movement Core (700) Ox13 Location -8/Materials Parts ------- > --- POWER (1) -------- (None) > --- PROPULSION (3) --- (None) > --- UTILITY (3) ------ High-capacity Storage Unit > --- WEAPON (4) ------- (None) > --- INVENTORY (20) --- (None) Peak State ------------ > --- POWER ------------ Ion Engine > --- PROPULSION ------- Aluminum Leg Aluminum Leg Aluminum Leg > --- UTILITY ---------- Improved Heat Sink High-capacity Matter Pod > --- WEAPON ----------- EM Pulse Gun Assault Rifle Grenade Launcher > --- INVENTORY -------- (None) [Rating: 11] Favorites ----------- Power Ion Engine Engine Ion Engine Propulsion Aluminum Leg Leg Aluminum Leg Utility High-capacity Matter Pod Device Improved Heat Sink Storage High-capacity Matter Pod Weapon Assault Rifle Energy Gun EM Pulse Gun Ballistic Gun Assault Rifle Launcher Grenade Launcher Build | -11 -10 -10 -9 -8 ------- Run | Yrd Mat Min Mat Mat Slots Evolved 4 | . . . 2 2 Power . | . . . . . Propulsion 1 | . . . 1 . Utility 1 | . . . . 1 Weapon 2 | . . . 1 1 Parts Attached 11 | 5 . 3 2 1 Power 1 | 1 . . . . Engine 1 | 1 . . . . Core . | . . . . . Reactor . | . . . . . Propulsion 4 | 2 . 1 1 . Treads . | . . . . . Leg 4 | 2 . 1 1 . Wheel . | . . . . . Hover . | . . . . . Flight . | . . . . . Utility 3 | . . 2 . 1 Device 1 | . . 1 . . Storage 2 | . . 1 . 1 Processor . | . . . . . Hackware . | . . . . . Protection . | . . . . . Artifact . | . . . . . Weapon 3 | 2 . . 1 . Energy Gun 1 | 1 . . . . Energy Cannon . | . . . . . Ballistic Gun 1 | 1 . . . . Ballistic Cannon . | . . . . . Launcher 1 | . . . 1 . Special Weapon . | . . . . . Impact Weapon . | . . . . . Slashing Weapon . | . . . . . Piercing Weapon . | . . . . . Special Melee Weapon . | . . . . . Unidentified Prototypes . | . . . . . Parts Lost 9 | . . . 1 8 Power 1 | . . . . 1 Propulsion 3 | . . . . 3 Utility 2 | . . . . 2 Weapon 3 | . . . 1 2 Highest Loss Streak 8 | . . . 1 8 To Critical Strikes . | . . . . . Average Backups . | . . . . . Power . | . . . . . Propulsion . | . . . . . Utility . | . . . . . Weapon . | . . . . . Tool/Special . | . . . . . Unused Backups . | . . . . . Power . | . . . . . Propulsion . | . . . . . Utility . | . . . . . Weapon . | . . . . . Tool/Special . | . . . . . Average Slot Usage (%) 81 | . 71 86 93 57 Engine 11 | . 14 14 11 5 Leg 27 | . 28 28 33 18 Device 5 | . . 3 11 7 Storage 11 | . . 11 11 16 Energy Gun 9 | . 14 14 5 . Ballistic Gun 11 | . 14 14 11 5 Launcher 3 | . . . 10 5 Peak Build Rating 11 | 5 5 9 11 11 Average Rating 7 | 4 5 6 10 8 On Entrance 5 | . 5 5 9 10 Avg Prop Armor Cover (%) . | . . . . . Naked Turns . | . . . . . Heaviest Build 55 | 9 9 14 17 55 Greatest Support 30 | 20 20 20 30 30 Greatest Overweight (x) 13 | . . . . 13 Average Overweight (x) . | . . . . 1 Largest Inventory Capacity 20 | 5 5 5 5 20 Average Capacity 7 | 5 5 5 5 20 Most Carried 3 | 3 . 3 1 . Average Carried . | . . . . . Final Capacity 20 | 5 5 5 5 20 Final Carried 2 | . . 2 1 . Class Distribution -------------------- 91% | Mutant 8% | Gunner Dominant Class ---------------- Mutant | -10/Materials Mutant | -10/Mines Mutant | -9/Materials Mutant | -8/Materials Resources | -11 -10 -10 -9 -8 ----------- Run | Yrd Mat Min Mat Mat Matter Collected 581 | 197 . 186 163 35 Remotely . | . . . . . Salvage Created 555 | . 12 238 270 35 Parts 44 | . 3 29 11 1 Haulers Intercepted . | . . . . . Recyclers Shooed 2 | . . 1 1 . Parts Field Recycled . | . . . . . Retrieved Matter . | . . . . . Parts Self-Destructed . | . . . . . Prevented . | . . . . . Parts Restored . | . . . . . Kills | -11 -10 -10 -9 -8 ------- Run | Yrd Mat Min Mat Mat Combat Hostiles Destroyed 18 | . . 11 6 1 Melee 1 | . . . . 1 Guns 12 | . . 10 2 . AOE 5 | . . 1 4 . Classes Destroyed 6 | . 1 2 3 . Worker 1 | . . . 1 . Recycler 1 | . . . 1 . Operator 1 | . 1 . . . Swarmer 9 | . . 9 . . Grunt 6 | . . 2 3 1 Sentry 3 | . . . 3 . Best Kill Streak 7 | . 1 6 7 1 Combat Bots Only 6 | . . 6 5 1 Max Kills in Single Turn 2 | . 1 2 2 1 Gunslinging 1 | . . 1 . . Exploded 1 | . . 1 1 . Melee 1 | . . . . 1 Uniques/NPCs Destroyed . | . . . . . Combat | -11 -10 -10 -9 -8 -------- Run | Yrd Mat Min Mat Mat Hostile Shots Fired 136 | . . 37 23 76 Missed 33 | . . 11 8 14 Hits 103 | . . 26 15 62 Projectile 103 | . . 26 15 62 Critical Strikes 5 | . . . . 5 Damage Taken 1534 | . . 248 197 1089 Core 647 | . . 70 22 555 Absorbed by Shields . | . . . . . Core Remaining (%) 88 | 100 . 72 94 . Volleys Fired 35 | . 1 15 15 4 Largest 3 | . 2 2 3 2 Hottest 90 | . 60 60 90 50 Shots Fired 66 | . 2 30 27 7 Gun 55 | . 2 30 19 4 Cannon . | . . . . . Launcher 11 | . . . 8 3 Special . | . . . . . Kinetic 35 | . 1 15 15 4 Thermal . | . . . . . Explosive 11 | . . . 8 3 Electromagnetic 20 | . 1 15 4 . Robot Hit Streak 21 | . 1 9 21 6 Robot Miss Streak 3 | . . 3 2 . Penetration Max . | . . . . . Secondary Targets 3 | . . 3 . . Max Gunslinging Chain 1 | . . 1 . . Shots Hit Robots 43 | . 1 20 17 5 Core Hits 46 | . 1 14 17 14 Critical Kills . | . . . . . Critical Parts Destroyed . | . . . . . Critical Strikes . | . . . . . Melee Attacks . | . . . . . Impact . | . . . . . Slashing . | . . . . . Piercing . | . . . . . Sneak Attacks . | . . . . . Combat Hostiles . | . . . . . Follow-up Attacks . | . . . . . Damage Inflicted 1123 | . 16 310 496 301 Guns 466 | . 16 238 170 42 Cannons . | . . . . . Explosions 604 | . . 43 315 246 Melee . | . . . . . Ramming 53 | . . 29 11 13 Kinetic 280 | . . 111 127 42 Thermal 43 | . . 43 . . Explosive 561 | . . . 315 246 Electromagnetic 186 | . 16 127 43 . Impact . | . . . . . Slashing . | . . . . . Piercing . | . . . . . Highest Corruption . | . . . . . Average Corruption . | . . . . . Corruption Purged . | . . . . . Corruption Blocked . | . . . . . Overload Shots . | . . . . . Overflow Damage . | . . . . . Projectiles . | . . . . . Explosions . | . . . . . Melee . | . . . . . Knockbacks 1 | . . 1 . . Impact 1 | . . 1 . . Kinetic . | . . . . . Secondary . | . . . . . Self-Inflicted Damage 13 | . . . . 13 Shots 1 | . . . . 1 Rammed 6 | . . . . 6 Targets Rammed 17 | . . 5 1 11 Kicked 11 | . . 5 1 5 Crushed . | . . . . . Highest Temperature 42 | . . 42 2 . Average Temperature 24 | . . 26 2 . Received Heat Transfer 756 | . . 42 66 648 Siege Activations . | . . . . . Martial Activations . | . . . . . Shielding Activations . | . . . . . Robots Disrupted . | . . . . . Combat Hostiles . | . . . . . Robots Corrupted . | . . . . . Combat Hostiles . | . . . . . Parts Fried . | . . . . . Impact Corruptions . | . . . . . Robots Melted . | . . . . . Combat Hostiles . | . . . . . Parts Melted . | . . . . . Heat Transferred . | . . . . . Parts Sabotaged . | . . . . . Parts Stolen . | . . . . . Parts Stripped . | . . . . . Power Chain Reactions 1 | . . 1 . . Alert | -11 -10 -10 -9 -8 ------- Run | Yrd Mat Min Mat Mat Maximum Alert Level . | . . . . . Low Security (%) 100 | 100 100 100 100 100 Level 1 . | . . . . . Level 2 . | . . . . . Level 3 . | . . . . . Level 4 . | . . . . . Level 5 . | . . . . . High Security . | . . . . . Max Security . | . . . . . Peak Influence 170 | . 5 159 170 63 Initial 63 | . . . 3 63 Average 63 | . 1 83 84 25 Influence Increases 549 | . 5 279 230 35 Destroy 0b10 Robot/C 360 | . . 220 120 20 Destroy 0b10 Robot/NC 15 | . 5 . 10 . Destroy Leader 80 | . . 40 40 . Disable Machine 30 | . . 15 15 . Destroy Structure 64 | . . 4 45 15 Influence Decreases 549 | . 5 270 89 185 Entered New Map 93 | . . . 6 87 Time Decay 408 | . 5 270 73 60 Lost Part 48 | . . . 10 38 Squads Dispatched 3 | . . . 2 1 Investigation 3 | . . . 2 1 Extermination . | . . . . . Reinforcement . | . . . . . Assault . | . . . . . Garrison . | . . . . . Intercept . | . . . . . Searches Triggered . | . . . . . Construction Impeded . | . . . . . Haulers Reinforced . | . . . . . Active Scanning Responses . | . . . . . Cargo Convoy Interrupts . | . . . . . Stealth | -11 -10 -10 -9 -8 --------- Run | Yrd Mat Min Mat Mat Distress Signals 1 | . . . 1 . Communications Jammed . | . . . . . Distress Signals . | . . . . . Times Spotted 24 | . 2 10 6 6 Peak Tracking Total 5 | . 1 5 3 5 Tactical Retreats . | . . . . . Traps | -11 -10 -10 -9 -8 ------- Run | Yrd Mat Min Mat Mat Traps Triggered 1 | . . . . 1 Indirectly . | . . . . . Trap Hack Attempts . | . . . . . Triggered . | . . . . . Disarmed . | . . . . . Reprogrammed . | . . . . . Reused . | . . . . . Traps Extracted . | . . . . . Installed . | . . . . . Triggered . | . . . . . Machines | -11 -10 -10 -9 -8 ---------- Run | Yrd Mat Min Mat Mat Machines Disabled 2 | . . 1 1 . Max in Single Turn 1 | . . 1 1 . Machines Repaired . | . . . . . Machines Dismantled . | . . . . . Machines Sabotaged . | . . . . . Overloaded Fab Kills . | . . . . . Hacking | -11 -10 -10 -9 -8 --------- Run | Yrd Mat Min Mat Mat Machines Accessed 4 | . 1 . 2 1 Terminals 4 | . 1 . 2 1 Fabricators . | . . . . . Repair Stations . | . . . . . Recycling Units . | . . . . . Scanalyzers . | . . . . . Garrison Access . | . . . . . Total Hacks 12 | . 3 . 7 2 Successful 6 | . 2 . 3 1 Failed 6 | . 1 . 4 1 Catastrophic . | . . . . . Database Lockouts . | . . . . . Manual . | . . . . . Terminals 12 | . 3 . 7 2 Fabricators . | . . . . . Repair Stations . | . . . . . Recycling Units . | . . . . . Scanalyzers . | . . . . . Garrison Access . | . . . . . Terminal Hacks 6 | . 2 . 3 1 Record 4 | . 1 . 2 1 Locate Traps 1 | . 1 . . . Dispatch Records 1 | . . . 1 . Fabricator Hacks . | . . . . . Repair Station Hacks . | . . . . . Recycling Unit Hacks . | . . . . . Scanalyzer . | . . . . . Garrison Access Hacks . | . . . . . Unauthorized Hacks . | . . . . . Terminals . | . . . . . Fabricators . | . . . . . Repair Stations . | . . . . . Recycling Units . | . . . . . Scanalyzers . | . . . . . Garrison Access . | . . . . . Data Cores Recovered 1 | . 1 . . . Used 1 | . 1 . . . Hacking Detections 4 | . 1 . 2 1 Full Trace Events 3 | . 1 . 2 . Feedback Events . | . . . . . Feedback Blocked . | . . . . . Robot Schematics Acquired . | . . . . . Robots Built . | . . . . . Authchips . | . . . . . Time . | . . . . . Total Robot Build Rating . | . . . . . Part Schematics Acquired . | . . . . . Parts Built . | . . . . . Authchips . | . . . . . Time . | . . . . . Total Part Build Rating . | . . . . . Part Studies Acquired . | . . . . . Parts Repaired . | . . . . . Time . | . . . . . Parts Recycled . | . . . . . Recycled Matter . | . . . . . Retrieved Matter . | . . . . . Retrieved Components . | . . . . . Parts Scanalyzed . | . . . . . Part Schematics Acquired . | . . . . . Parts Damaged . | . . . . . Bothacking | -11 -10 -10 -9 -8 ------------ Run | Yrd Mat Min Mat Mat Used RIF Installer . | . . . . . Robots Hacked . | . . . . . Non-combat . | . . . . . Combat . | . . . . . Robot Hacks Applied . | . . . . . Relay Couplers Released . | . . . . . Fabnet Peak Effective % . | . . . . . Robots Rewired . | . . . . . Allies Hacked . | . . . . . Hacks Repelled . | . . . . . Allies | -11 -10 -10 -9 -8 -------- Run | Yrd Mat Min Mat Mat Total Allies . | . . . . . Largest Group . | . . . . . Highest-Rated Group . | . . . . . Highest-Rated Ally . | . . . . . Total Orders . | . . . . . Ally Attacks . | . . . . . Total Damage . | . . . . . Kills . | . . . . . Allies Corrupted . | . . . . . Allies Melted . | . . . . . Intel | -11 -10 -10 -9 -8 ------- Run | Yrd Mat Min Mat Mat Active Infowar (turns) . | . . . . . Robot Analysis Total . | . . . . . Derelict Logs Recovered . | . . . . . Drone Launches . | . . . . . Drone Recoveries . | . . . . . Exploration | -11 -10 -10 -9 -8 ------------- Run | Yrd Mat Min Mat Mat Turns Passed 1139 | 85 65 587 223 179 Spaces Moved 763 | 67 52 440 149 55 Core 7 | 6 . . . 1 Treads . | . . . . . Legs 756 | 61 52 440 149 54 Wheels . | . . . . . Hover . | . . . . . Flight . | . . . . . Fastest Speed 50 | 50 120 120 120 190 Average Speed 125 | 113 120 120 120 199 Slowest Speed 700 | 120 120 120 120 700 Overloaded Moves . | . . . . . Propulsion Burnouts . | . . . . . Robots Hopped . | . . . . . Potential Cave-ins . | . . . . . Cave-ins Triggered . | . . . . . Exploration Rate (%) 25 | 5 15 75 22 9 Regions Visited 4 Branch Regions 1 Pre-discovered Areas . | . . . . . Known Exits Taken . | . . . . . Unknown Exits Taken 4 | 1 1 1 1 . Scrap Searched 1 | . . 1 . . Spaces Dug . | . . . . . Terrain Destroyed 66 | . . 4 47 15 Melee . | . . . . . Projectile . | . . . . . AOE 66 | . . 4 47 15 Terrain Rammed . | . . . . . Walls Destroyed . | . . . . . Machines Disabled . | . . . . . Actions | -11 -10 -10 -9 -8 --------- Run | Yrd Mat Min Mat Mat Total 834 | 76 52 468 167 71 Wait . | . . . . . Move 759 | 66 51 439 148 55 Hop . | . . . . . Pick Up 11 | 5 . 5 1 . Fast Attach . | . . . . . Attach 10 | 5 . 2 2 1 Detach . | . . . . . Swap 1 | . . 1 . . Drop 1 | . . 1 . . Fire 35 | . 1 15 15 4 Melee . | . . . . . Ram 6 | . . . . 6 Kick 11 | . . 5 1 5 Crush . | . . . . . Escape Stasis . | . . . . . Rewire . | . . . . . Trap . | . . . . . Miscellaneous . | . . . . . Route ------- -11/Scrapyard -10/Materials -10/Mines -9/Materials (discovered 2 exits: *Mat / [*Min]) -8/Materials History --------- Turn | Location | Event 3 | -11/Scrapyard | Discovered new exit (range 15) 86 | -11/Scrapyard | Entered Materials 134 | -10/Materials | Discovered new exit (range 15) 151 | -10/Materials | Entered Mines 169 | -10/Mines | Met a Derelict bent on vengeance 263 | -10/Mines | Discovered new exit (range 5) 311 | -10/Mines | Build established: Mutant 738 | -10/Mines | Entered Materials 738 | -9/Materials | Evolved 2 slots: Propulsion x1, Weapon x1 764 | -9/Materials | Discovered new exit (range 14) 958 | -9/Materials | Discovered new exit (range 3) 961 | -9/Materials | Entered another Materials area 961 | -8/Materials | Evolved 2 slots: Utility x1, Weapon x1 1107 | -8/Materials | Core integrity fell below 50% 1137 | -8/Materials | Core integrity fell below 20% 1140 | -8/Materials | Destroyed by G-50 Soldier with Heavy Laser Last Messages --------------- U-05 Engineer builds a Wall. U-05 Engineer lays Concrete. U-05 Engineer builds a Wall. Slammed into G-47 Trooper. U-05 Engineer lays Concrete. G-47 Trooper destroyed. U-05 Engineer lays Concrete. U-05 Engineer builds a Wall. U-05 Engineer lays Concrete. M-13 Machinist repairs G-50 Soldier. U-05 Engineer lays Concrete. M-13 Machinist suffers critical hit (Burn). M-13 Machinist destroyed. Slammed into G-50 Soldier. U-05 Engineer lays Concrete. U-05 Engineer builds a Wall. Terminal disabled. Slammed into G-50 Soldier. U-05 Engineer builds a Wall. U-05 Engineer lays Concrete. Map ----- +----------------------------------------------------+ | ?????????????????????????????????????????????????? | | ?????????????????????????????????????????????????? | | ?????????????????????????????????????????????????? | | ?????????????????????????????????????????????????? | | ??????????????????????????????? ? ?????????????? | | ???????????????????????????????/ ?????????????? | | ??????????????????????????????? T ?????????????? | | ??????????????????????????????? ?????????????? | | ??????????????????????????????? ?????????????? | | ???????????????????????????????# #?????????????? | | ???????????????????????????????# #?????????????? | | ???????????????????????????????# ##????????????? | | ???????????????????????????????# T?????????????? | | ??????????????????????#######??# ###########???? | | ??????????????????????# ??# # #???? | | ??????????????????????# ?# # #???? | | ??????????????????????# ?# # #???? | | ???????????####??####?# !!! # # #???? | | ???????????# """ #?# ! !!! # # #???? | | ???????????# """"" #?# !! + + #???? | | ???????????# """"" #?# # # #???? | | ???????????# """"" #?# ! # # ! #???? | | ???????????# """ #?# ?# ###########???? | | ???????????# #?########## #?????????? | | ???????????# ###### #### #?????????? | | ???????????# g%%%%@ #?????????? | | ???????????# # g% g #####+####?????????? | | ???????????#####+#### g ##? ???????????? | | ??????????????# ## #?????????? | | ??????????????# ##+######## ## """ #?????????? | | ??????????????# ??# #k### """ !#?????????? | | ??????????????????# " " ! # #?# """ #?????????? | | ??????????????????# """ # #?# #?????????? | | ??????????????????# # #?########?????????? | | ??????????????????###########+#??????????????????? | | ?????????????????????????????????????????????????? | | ?????????????????????????????????????????????????? | | ?????????????????????????????????????????????????? | | ?????????????????????????????????????????????????? | | ?????????????????????????????????????????????????? | | ?????????????????????????????????????????????????? | | ?????????????????????????????????????????????????? | | ?????????????????????????????????????????????????? | | ?????????????????????????????????????????????????? | | ?????????????????????????????????????????????????? | | ?????????????????????????????????????????????????? | | ?????????????????????????????????????????????????? | | ?????????????????????????????????????????????????? | | ?????????????????????????????????????????????????? | | ?????????????????????????????????????????????????? | +----------------------------------------------------+ Best States ------------- Heat Dissipation 45 Energy Generation 10 Energy Capacity 250 Matter Stores 431 Matter Capacity 500 Sight Range 16 Terrain Scan Density 10 Evasion (%) 55 Item Schematics ----------------- None Robot Schematics ------------------ None Fabricated ------------ Nothing Repaired ---------- Nothing Studied --------- None Alien Tech Used ----------------- None Achievements -------------- Dynamic Key Challenges ------------ None Game ------ Seed LayeredSuperchargedSpiker Manual? 0 Play Time 00:09:51 Cumulative 3.3 hours Start 2025.12.28 @ 15:10:58 End 2025.12.28 @ 15:19:18 Sessions 1 Manual Loads 0 Difficulty Rogue Special Mode None Game No. 9 Rogue 9 Adventurer 0 Explorer 0 Win Type - Total 0 Types 0/0/0/0/0/0/0/0/0/0 Lore% 4 Gallery% 8 Achievement% 9 Wizard Run 0 Options --------- Layout 1 ASCII 1 Keyboard 0 Movement Mouse Keybinds 0 Fullscreen 2 Font 32/SmallcapsGlow Map View 50x35 Zoom Use 0% Tactical HUD 0 Map Filters NONE Filters NONE Steam 1 RUN: cdaeb907-5f58-4316-bbd6-cf3ec36fe14f